bitfinex/quotes_SOLUSD_20251223
["timestamp","ask_amount","ask_price","bid_price","bid_amount"]
[1766502196360,12.99545217,122.64,122.59,0.7]
[1766502196556,4.84129762,122.66,122.61,4.84129762]
[1766502196858,0.66,122.67,122.58,8.1579057]
[1766502196859,0.66,122.67,122.62,4.84129762]
[1766502197160,40.74074014,122.73,122.66,4.84129762]
[1766502197161,1.67857887,122.72,122.66,4.84129762]
[1766502197375,5.50129762,122.72,122.67,4.84129762]
[1766502197541,5.50129762,122.72,122.66,0.7]
[1766502197542,15.27897058,122.71,122.66,0.7]
[1766502197860,12.9886973,122.74,122.7,4.84129762]
[1766502198062,12.9886973,122.74,122.67,8.15137031]
[1766502198063,13.6486973,122.74,122.69,4.84129762]
[1766502198358,4.84129762,122.72,122.66,0.7]
[1766502198556,4.84129762,122.72,122.68,4.84129762]
[1766502198872,12.11616884,122.73,122.69,4.84129762]
[1766502199152,5.50129762,122.73,122.68,4.84129762]
[1766502199358,4.84129762,122.72,122.67,0.7]
[1766502199570,4.84129762,122.72,122.67,5.54129762]
[1766502199984,0.66,122.71,122.64,18.75401589]
[1766502200295,10.43767296,122.69,122.64,0.7]
[1766502200457,10.43767296,122.71,122.66,0.7]
[1766502200657,15.27897058,122.71,122.66,5.54129762]
[1766502200857,10.43767296,122.71,122.67,5.54129762]
[1766502201285,10.43767296,122.71,122.68,4.84129762]
[1766502201481,24.48,122.73,122.68,4.84129762]
[1766502201482,12.98955177,122.73,122.68,4.84129762]
[1766502201670,5.50129762,122.74,122.69,5.54129762]
[1766502201876,4.84129762,122.73,122.68,4.84129762]
[1766502202199,4.84129762,122.73,122.68,0.7]
[1766502202480,10.43767296,122.71,122.66,5.54129762]
[1766502202672,15.27897058,122.71,122.66,5.54129762]
[1766502202893,4.84129762,122.69,122.64,5.54129762]
[1766502203186,4.84129762,122.68,122.64,5.54129762]
[1766502203401,4.84129762,122.68,122.64,0.7]
[1766502203562,4.84129762,122.69,122.64,5.54129762]
[1766502203887,0.66,122.7,122.64,5.54129762]
[1766502204073,12.99197573,122.69,122.64,0.7]
[1766502204278,12.99197573,122.69,122.64,5.54129762]
[1766502204862,4.84129762,122.68,122.64,0.7]
[1766502205063,13.65197573,122.69,122.64,5.54129762]
[1766502205466,4.84129762,122.66,122.61,0.7]
[1766502205668,4.84129762,122.66,122.61,5.54129762]
[1766502206187,10.43767296,122.68,122.62,5.54129762]
[1766502206485,15.93897058,122.68,122.63,5.54129762]
[1766502206687,11.09767296,122.68,122.63,5.54129762]
[1766502206870,11.09767296,122.68,122.61,8.15589419]
[1766502206871,23.42892983,122.7,122.65,5.54129762]
[1766502207182,10.43767296,122.7,122.62,10.6003341]
[1766502207383,19.72129762,122.72,122.67,4.84129762]
[1766502207562,38.30769999,122.72,122.65,0.7]
[1766502207758,4.84129762,122.7,122.65,4.84129762]
[1766502208077,4.84129762,122.7,122.65,5.54129762]
[1766502208279,4.84129762,122.69,122.65,0.7]
[1766502208988,4.84129762,122.68,122.63,13.6956138]
[1766502209162,4.84129762,122.67,122.61,8.15574984]
[1766502209366,4.84129762,122.66,122.62,5.54129762]
[1766502209583,0.66,122.68,122.62,5.54129762]
[1766502209791,4.84129762,122.66,122.62,5.54129762]
[1766502210177,4.84129762,122.66,122.59,28.54899549]
[1766502210389,4.84129762,122.65,122.6,8.15649934]
[1766502210684,4.84129762,122.63,122.59,0.7]
[1766502213685,15.27897058,122.57,122.53,0.87]
[1766502213875,4.84129762,122.56,122.53,0.2]
[1766502214397,4.84129762,122.54,122.53,0.2]
[1766502214704,4.84129762,122.55,122.53,0.2]
[1766502215190,10.43767296,122.57,122.53,0.2]
[1766502215388,10.43767296,122.57,122.53,0.87]
[1766502215573,4.84129762,122.56,122.53,0.2]
[1766502215774,19.26632966,122.57,122.53,0.2]
[1766502216176,8.15973289,122.56,122.53,0.2]
[1766502216380,4.84129762,122.55,122.53,0.2]
[1766502216590,15.27897058,122.55,122.53,0.2]
[1766502216992,10.43767296,122.55,122.53,0.2]
[1766502217292,15.27897058,122.55,122.53,0.2]
[1766502217469,10.43767296,122.55,122.53,0.2]
[1766502217797,15.27897058,122.55,122.53,0.2]
[1766502217996,0.67,122.56,122.53,0.2]
[1766502218168,0.67,122.56,122.51,0.67]
[1766502218169,4.84129762,122.54,122.49,13.68497342]
[1766502218582,4.84129762,122.55,122.5,5.52129762]
[1766502219094,13.00139783,122.55,122.5,5.52129762]
[1766502219273,4.84129762,122.55,122.5,4.84129762]
[1766502219596,4.84129762,122.55,122.51,0.68]
[1766502220172,4.84129762,122.53,122.49,0.68]
[1766502220382,10.43767296,122.54,122.49,0.68]
[1766502220587,9.17957488,122.56,122.5,0.68]
[1766502220883,4.84129762,122.55,122.5,4.84129762]
[1766502221085,4.84129762,122.55,122.51,0.68]
[1766502222075,4.84129762,122.54,122.51,0.68]
[1766502222298,4.84129762,122.54,122.49,5.52129762]
[1766502222498,4.84129762,122.53,122.49,0.68]
[1766502222679,15.27897058,122.53,122.49,0.68]
[1766502224069,15.27897058,122.55,122.51,0.68]
[1766502224681,10.43767296,122.55,122.51,0.68]
[1766502224887,15.27897058,122.55,122.51,0.68]
[1766502225294,4.84129762,122.56,122.51,5.52129762]
[1766502225685,4.84129762,122.56,122.51,0.68]
[1766502225886,8.15935319,122.56,122.51,0.68]
[1766502226091,4.84129762,122.53,122.51,0.68]
[1766502226406,8.81935319,122.56,122.49,8.84378535]
[1766502226407,4.84129762,122.54,122.49,8.84378535]
[1766502226586,4.84129762,122.53,122.49,0.68]
[1766502226788,10.43767296,122.53,122.49,0.68]
[1766502226988,15.27897058,122.53,122.49,0.68]
[1766502227193,10.43767296,122.53,122.49,0.68]
[1766502227389,10.43767296,122.53,122.49,5.52129762]
[1766502227588,10.43767296,122.53,122.49,0.68]
[1766502227895,10.43767296,122.55,122.51,0.68]
[1766502228096,5.86103982,122.58,122.53,5.52129762]
[1766502228407,4.84129762,122.58,122.53,5.52129762]
[1766502228603,1.67965902,122.59,122.54,0.68]
[1766502228808,4.84129762,122.58,122.54,0.68]
[1766502229283,15.27897058,122.58,122.54,0.68]
[1766502229479,10.43767296,122.58,122.55,0.68]
[1766502229693,4.84129762,122.58,122.54,0.68]
[1766502230009,10.43767296,122.58,122.54,0.68]
[1766502230194,12.11741516,122.58,122.52,0.68]
[1766502230511,4.84129762,122.55,122.51,0.68]
[1766502230712,4.84129762,122.53,122.48,0.88]
[1766502231015,4.84129762,122.52,122.48,0.88]
[1766502231216,4.84129762,122.51,122.48,0.88]
[1766502231396,11.09767296,122.53,122.48,0.88]
[1766502231604,4.84129762,122.51,122.48,0.88]
[1766502232003,7.89512294,122.51,122.48,0.88]
[1766502232305,11.09767296,122.53,122.48,0.88]
[1766502232903,10.43767296,122.53,122.5,0.68]
[1766502233100,22.79512294,122.55,122.5,0.68]
[1766502233421,22.79512294,122.55,122.51,0.68]
[1766502233589,18.3327959,122.55,122.51,0.68]
[1766502233795,26.49298865,122.55,122.51,0.68]
[1766502234000,18.59786571,122.55,122.49,7.89512294]
[1766502234198,7.89512294,122.53,122.49,0.68]
[1766502234396,7.89512294,122.52,122.48,0.2]
[1766502234613,7.89512294,122.5,122.48,0.2]
[1766502235318,19.26026781,122.52,122.48,0.2]
[1766502235518,7.89512294,122.51,122.48,0.2]
[1766502235813,7.89512294,122.5,122.48,0.2]
[1766502236193,19.26026781,122.52,122.48,0.2]
[1766502236398,39.66509967,122.52,122.48,0.2]
[1766502236595,7.89512294,122.5,122.48,0.2]
[1766502237211,11.45791455,122.52,122.49,0.68]
[1766502237412,10.43767296,122.52,122.48,8.77512294]
[1766502238013,26.49502975,122.52,122.48,0.2]
[1766502238617,18.3327959,122.52,122.48,0.2]
[1766502238922,7.89512294,122.51,122.48,0.2]
[1766502239289,18.59968096,122.52,122.48,0.2]
[1766502239290,19.25968096,122.52,122.48,0.2]
[1766502239522,7.89512294,122.5,122.48,0.2]
[1766502239817,1.68032487,122.51,122.48,0.2]
[1766502240017,18.59968096,122.52,122.48,0.2]
[1766502240220,7.89512294,122.51,122.48,0.2]
[1766502240515,7.89512294,122.5,122.48,0.2]
[1766502240823,16.05905468,122.49,122.45,0.31177041]
[1766502241041,10.43767296,122.52,122.46,8.05778408]
[1766502241322,18.5997657,122.52,122.47,7.89512294]
[1766502241539,18.5997657,122.52,122.46,7.89512294]
[1766502241702,7.89512294,122.5,122.45,16.22414404]
[1766502242117,7.89512294,122.49,122.44,8.16723702]
[1766502242329,7.89512294,122.49,122.44,0.16266114]
[1766502242498,0.66,122.5,122.43,10.43767296]
[1766502242700,7.89512294,122.47,122.42,0.68]
[1766502242993,1.02032487,122.51,122.41,8.16914759]
[1766502242994,1.02015832,122.53,122.45,7.89512294]
[1766502243198,18.3327959,122.51,122.46,8.57512294]
[1766502243401,10.43767296,122.51,122.47,7.89512294]
[1766502243699,8.15987371,122.56,122.5,0.68]
[1766502243897,7.89512294,122.52,122.48,0.68]
[1766502244117,1.67999184,122.55,122.49,0.68]
[1766502244317,1.67999184,122.55,122.49,8.57512294]
[1766502244501,7.89512294,122.53,122.49,0.68]
[1766502244700,16.05641648,122.53,122.48,8.57512294]
[1766502244916,17.0765748,122.53,122.49,7.89512294]
[1766502245119,17.7365748,122.53,122.48,8.57512294]
[1766502245307,16.05595987,122.54,122.5,7.89512294]
[1766502245619,19.25783666,122.55,122.5,0.68]
[1766502245813,16.71528664,122.55,122.51,7.89512294]
[1766502246012,8.8201637,122.55,122.51,7.89512294]
[1766502246324,19.25783666,122.55,122.51,7.89512294]
[1766502246521,8.91519801,122.54,122.5,0.68]
[1766502246721,27.15473893,122.52,122.48,7.89512294]
[1766502246921,10.43767296,122.55,122.51,7.89512294]
[1766502247226,7.89512294,122.54,122.5,8.59512294]
[1766502247425,0.66,122.52,122.46,0.7]
[1766502247726,11.09767296,122.52,122.48,7.89512294]
[1766502248317,18.9927959,122.52,122.48,7.89512294]
[1766502248524,12.11791455,122.52,122.48,7.89512294]
[1766502248735,11.09767296,122.52,122.48,7.89512294]
[1766502249030,10.43767296,122.52,122.49,7.89512294]
[1766502249233,18.59845818,122.54,122.51,7.89512294]
[1766502249605,10.43767296,122.54,122.51,7.89512294]
[1766502250229,8.81997484,122.55,122.52,7.89512294]
[1766502250434,19.2576478,122.55,122.51,7.89512294]
[1766502250931,16.71459379,122.56,122.52,7.89512294]
[1766502251126,27.15226675,122.56,122.51,8.59512294]
[1766502251504,19.25714381,122.56,122.51,8.59512294]
[1766502251708,27.15226675,122.56,122.52,7.89512294]
[1766502251908,23.45512294,122.58,122.53,7.89512294]
[1766502252109,15.56,122.58,122.53,7.89512294]
[1766502252414,14.9,122.58,122.55,8.59512294]
[1766502252620,7.89512294,122.61,122.57,7.89512294]
[1766502252934,16.04791985,122.66,122.6,7.89512294]
[1766502253135,8.15279691,122.66,122.63,7.89512294]
[1766502253438,8.55512294,122.64,122.58,0.16266114]
[1766502253642,0.66,122.64,122.59,8.59512294]
[1766502253931,0.66,122.64,122.61,7.89512294]
[1766502254132,16.70926658,122.64,122.6,7.89512294]
[1766502254847,9.01149373,122.68,122.63,7.89512294]
[1766502255042,16.90661667,122.68,122.63,7.89512294]
[1766502255338,27.34428963,122.68,122.64,7.89512294]
[1766502255539,0.66,122.65,122.58,8.15780866]
[1766502255741,0.66,122.66,122.6,7.89512294]
[1766502255928,16.7084879,122.65,122.59,8.15727084]
[1766502256240,0.66,122.63,122.59,7.89512294]
[1766502256536,8.55512294,122.63,122.58,7.89512294]
[1766502256930,0.66,122.62,122.58,7.89512294]
[1766502257237,18.9927959,122.64,122.59,16.052146]
[1766502257535,11.09767296,122.64,122.6,7.89512294]
[1766502257744,18.9927959,122.64,122.6,7.89512294]
[1766502258517,27.14690889,122.64,122.59,7.89512294]
[1766502259231,27.14690889,122.64,122.58,0.7]
[1766502259232,0.66,122.63,122.58,0.7]
[1766502259433,20.27102926,122.64,122.59,7.89512294]
[1766502259742,18.9927959,122.64,122.6,7.89512294]
[1766502260147,28.16460763,122.66,122.61,7.89512294]
[1766502260329,9.77403392,122.68,122.63,7.89512294]
[1766502260644,8.75512294,122.68,122.64,7.89512294]
[1766502260847,27.34425499,122.68,122.63,7.89512294]
[1766502261151,7.89512294,122.66,122.62,8.59512294]
[1766502261319,18.5327959,122.68,122.64,7.89512294]
[1766502261523,19.1927959,122.68,122.64,7.89512294]
[1766502262025,19.1927959,122.68,122.62,8.85511971]
[1766502262026,27.34463896,122.68,122.62,0.7]
[1766502262337,7.89512294,122.67,122.63,8.59512294]
[1766502262535,27.70354994,122.68,122.63,8.59512294]
[1766502262732,27.70354994,122.68,122.61,8.15584483]
[1766502262733,7.89512294,122.66,122.61,8.59512294]
[1766502262937,18.3327959,122.65,122.61,0.7]
[1766502263127,7.89512294,122.64,122.61,0.7]
[1766502263325,11.45683317,122.65,122.61,0.7]
[1766502263541,18.3327959,122.65,122.61,0.7]
[1766502263741,10.43767296,122.65,122.62,0.7]
[1766502265450,18.3327959,122.67,122.63,0.7]
[1766502265649,7.89512294,122.66,122.58,0.16266114]
[1766502265850,20.26865269,122.67,122.62,0.7]
[1766502266345,18.3327959,122.67,122.63,0.7]
[1766502266548,18.3327959,122.67,122.63,8.59512294]
[1766502266732,26.48476437,122.67,122.63,8.59512294]
[1766502266933,26.48476437,122.67,122.63,0.7]
[1766502267134,43.06964143,122.67,122.63,0.7]
[1766502267335,26.48476437,122.67,122.63,0.7]
[1766502267534,26.48476437,122.67,122.62,7.89512294]
[1766502267759,8.55512294,122.66,122.61,0.16266114]
[1766502267943,8.55512294,122.66,122.62,7.89512294]
[1766502268332,8.55512294,122.66,122.61,0.86266114]
[1766502268650,8.55512294,122.65,122.6,7.89512294]
[1766502268847,8.55512294,122.65,122.6,16.05171244]
[1766502269053,8.55512294,122.65,122.61,7.89512294]
[1766502270127,0.66,122.64,122.6,7.89512294]
[1766502270732,8.55512294,122.64,122.6,7.89512294]
[1766502271130,0.66,122.64,122.6,7.89512294]
[1766502271837,0.66,122.64,122.59,9.01988322]
[1766502272037,0.66,122.64,122.6,7.89512294]
[1766502272861,0.66,122.64,122.59,9.01988322]
[1766502273061,0.66,122.64,122.6,7.89512294]
[1766502273265,17.06710075,122.66,122.62,7.89512294]
[1766502273466,1.01907712,122.66,122.63,7.89512294]
[1766502273761,10.43767296,122.67,122.64,7.89512294]
[1766502273959,8.77512294,122.68,122.64,7.89512294]
[1766502274255,0.68,122.66,122.62,7.89512294]
[1766502275166,0.68,122.66,122.63,7.89512294]
[1766502275576,11.31767296,122.68,122.64,7.89512294]
[1766502276186,19.46949507,122.68,122.64,7.89512294]
[1766502276481,27.36461801,122.68,122.64,7.89512294]
[1766502277180,10.63767296,122.68,122.65,7.89512294]
[1766502277677,15.56,122.72,122.67,8.55512294]
[1766502277881,14.9,122.72,122.69,7.89512294]
[1766502278083,0.2,122.73,122.71,7.89512294]
[1766502278257,8.55512294,122.78,122.72,8.55512294]
[1766502278464,0.66,122.78,122.74,7.89512294]
[1766502278658,0.66,122.77,122.73,7.89512294]
[1766502279589,0.66,122.73,122.67,8.81144922]
[1766502279883,0.66,122.73,122.69,7.89512294]
[1766502280060,11.09767296,122.75,122.71,7.89512294]
[1766502280663,0.66,122.74,122.69,0.66]
[1766502280858,0.66,122.73,122.69,7.89512294]
[1766502281063,8.55512294,122.73,122.69,7.89512294]
[1766502281282,7.89512294,122.73,122.67,0.66]
[1766502281582,25.4984129,122.74,122.67,7.89512294]
[1766502281583,0.66,122.71,122.67,7.89512294]
[1766502281772,8.55512294,122.71,122.66,8.05778408]
[1766502281975,0.66,122.71,122.67,7.89512294]
[1766502283387,0.66,122.71,122.67,16.04702993]
[1766502283568,17.72172051,122.73,122.68,7.89512294]
[1766502283767,17.06172051,122.73,122.68,7.89512294]
[1766502283978,8.55512294,122.72,122.68,7.89512294]
[1766502284593,1.6784129,122.74,122.7,7.89512294]
[1766502284775,12.11608586,122.74,122.7,7.89512294]
[1766502284979,11.09767296,122.74,122.7,7.89512294]
[1766502285477,18.9927959,122.74,122.7,7.89512294]
[1766502286009,34.91104288,122.76,122.71,7.89512294]
[1766502286287,15.56,122.76,122.72,7.89512294]
[1766502286582,17.05860973,122.77,122.72,7.89512294]
[1766502286583,16.7001016,122.78,122.73,7.89512294]
[1766502286884,0.66,122.78,122.75,7.89512294]
[1766502287068,0.66,122.79,122.75,7.89512294]
[1766502287268,0.66,122.79,122.76,7.89512294]
[1766502287477,0.66,122.78,122.74,7.89512294]
[1766502287991,0.66,122.78,122.73,0.66]
[1766502288285,0.66,122.78,122.74,7.89512294]
[1766502288885,0.66,122.78,122.73,8.80775739]
[1766502289100,0.2,122.8,122.77,7.89512294]
[1766502289266,0.2,122.8,122.79,7.89512294]
[1766502289986,10.43767296,122.83,122.79,7.89512294]
[1766502290211,9.15778386,122.85,122.8,7.89512294]
[1766502290387,0.66,122.84,122.8,7.89512294]
[1766502290581,0.76,122.86,122.82,7.89512294]
[1766502290902,0.66,122.85,122.8,0.82266114]
[1766502291213,0.66,122.85,122.81,7.89512294]
[1766502291410,0.66,122.85,122.82,7.89512294]
[1766502291786,0.1,122.86,122.82,7.89512294]
[1766502291985,0.1,122.86,122.83,7.89512294]
[1766502292302,0.1,122.86,122.84,7.89512294]
[1766502292479,0.1,122.86,122.85,7.89512294]
[1766502292979,0.1,122.86,122.83,0.66]
[1766502293181,0.1,122.86,122.83,7.89512294]
[1766502293519,0.1,122.86,122.81,8.96531273]
[1766502293697,0.1,122.86,122.83,7.89512294]
[1766502294208,0.1,122.86,122.84,4.82971624]
[1766502294402,4.82971624,122.88,122.84,5.42971624]
[1766502294597,19.06400497,122.89,122.84,5.42971624]
[1766502294783,9.24939518,122.89,122.86,5.42971624]
[1766502295101,14.88,122.9,122.86,5.42971624]
[1766502295304,14.88,122.9,122.87,4.82971624]
[1766502295507,13.98213877,122.92,122.83,8.9554509]
[1766502295508,5.58971624,122.93,122.89,4.82971624]
[1766502295802,5.58971624,122.93,122.9,4.82971624]
[1766502295803,0.76,122.93,122.9,4.82971624]
[1766502296204,0.76,122.93,122.89,4.82971624]
[1766502296592,0.76,122.93,122.9,4.82971624]
[1766502296790,0.1,122.93,122.9,4.82971624]
[1766502296978,0.1,122.93,122.91,4.82971624]
[1766502297182,8.89482954,122.93,122.89,4.82971624]
[1766502297409,0.66,122.92,122.88,4.82971624]
[1766502297589,0.1,122.93,122.89,4.82971624]
[1766502297791,0.76,122.93,122.89,4.82971624]
[1766502298208,13.72443434,122.93,122.88,4.82971624]
[1766502298411,0.66,122.91,122.87,4.82971624]
[1766502298707,0.66,122.91,122.88,4.82971624]
[1766502298914,0.66,122.92,122.88,4.82971624]
[1766502299410,0.66,122.88,122.84,4.82971624]
[1766502300209,0.66,122.88,122.83,11.03767296]
[1766502300210,0.66,122.88,122.81,20.35577851]
[1766502300397,0.66,122.86,122.82,4.82971624]
[1766502301031,5.48971624,122.86,122.81,0.16266114]
[1766502301216,10.43767296,122.88,122.84,4.82971624]
[1766502301413,0.66,122.89,122.85,4.82971624]
[1766502301591,11.45467727,122.91,122.88,4.82971624]
[1766502301792,14.88,122.92,122.9,4.82971624]
[1766502301996,0.76,122.94,122.89,0.6]
[1766502302226,0.1,122.94,122.9,0.5]
[1766502302522,0.1,122.97,122.94,0.4]
[1766502302703,0.1,122.98,122.95,4.82971624]
[1766502302889,0.1,122.98,122.94,0.4]
[1766502303097,0.1,122.98,122.96,4.82971624]
[1766502303492,0.1,122.98,122.97,4.82971624]
[1766502303814,0.1,122.98,122.95,10.6003341]
[1766502304002,0.1,122.98,122.97,4.82971624]
[1766502304189,0.2,122.99,122.97,4.82971624]
[1766502304390,0.2,122.99,122.98,4.82971624]
[1766502304589,0.2,122.99,122.95,10.63767296]
[1766502304826,0.2,122.99,122.97,4.82971624]
[1766502305032,0.66,122.98,122.92,0.81353726]
[1766502305324,0.66,122.98,122.94,4.82971624]
[1766502305531,0.2,122.99,122.93,0.2]
[1766502305709,0.2,122.99,122.92,15.43005034]
[1766502305710,0.2,122.99,122.98,4.82971624]
[1766502305901,0.66,123.02,122.98,4.82971624]
[1766502306102,5.48971624,123.02,122.96,0.16266114]
[1766502306305,0.66,123.0,122.96,4.82971624]
[1766502306501,0.66,123.0,122.94,10.43767296]
[1766502306718,0.65,122.99,122.95,4.82971624]
[1766502306916,0.65,122.99,122.92,8.13517402]
[1766502306917,0.65,122.98,122.94,4.82971624]
[1766502307122,4.82971624,122.97,122.89,0.81373586]
[1766502307332,5.47971624,122.96,122.92,4.82971624]
[1766502307630,0.65,122.93,122.88,4.82971624]
[1766502308013,0.65,122.93,122.9,4.82971624]
[1766502308318,1.01667344,122.95,122.9,4.82971624]
[1766502308536,0.65,122.96,122.92,4.82971624]
[1766502308830,0.65,123.0,122.95,4.82971624]
[1766502309036,21.43535062,123.04,122.95,10.43767296]
[1766502309037,0.65,123.02,122.95,10.43767296]
[1766502309216,5.47971624,123.02,122.96,0.16266114]
[1766502309531,0.65,123.01,122.97,4.82971624]
[1766502309735,0.65,123.0,122.94,0.16266114]
[1766502310031,0.65,123.0,122.96,4.82971624]
[1766502310203,1.66601235,123.03,122.99,4.82971624]
[1766502310402,0.65,123.03,122.99,4.82971624]
[1766502310606,0.65,123.03,123.0,4.82971624]
[1766502310828,0.65,123.03,122.99,4.82971624]
[1766502311031,0.65,123.0,122.96,4.82971624]
[1766502311212,0.65,123.0,122.98,4.82971624]
[1766502311532,11.08767296,123.01,122.98,4.82971624]
[1766502311734,16.28348414,123.02,122.94,0.16266114]
[1766502312034,11.08767296,123.02,122.98,4.82971624]
[1766502312439,0.65,123.01,122.98,4.82971624]
[1766502312941,0.65,123.01,122.94,8.13382576]
[1766502313120,0.65,123.0,122.96,4.82971624]
[1766502313316,0.65,123.0,122.97,4.82971624]
[1766502313541,11.08767296,123.02,122.98,4.82971624]
[1766502314445,4.82971624,123.03,122.97,10.43767296]
[1766502314651,0.65,123.01,122.97,4.82971624]
[1766502315349,0.65,123.01,122.96,0.16266114]
[1766502315550,4.82971624,123.01,122.95,10.43767296]
[1766502315725,0.65,123.01,122.97,4.82971624]
[1766502316356,0.65,123.03,122.99,4.82971624]
[1766502316567,0.65,123.03,123.0,4.82971624]
[1766502316857,0.1,123.04,123.02,4.82971624]
[1766502317044,0.1,123.04,123.03,4.82971624]
[1766502317424,0.1,123.04,123.02,4.82971624]
[1766502317980,0.1,123.04,123.03,4.82971624]
[1766502318174,0.65,123.09,123.06,4.82971624]
[1766502318320,0.65,123.09,123.03,0.16266114]
[1766502318321,0.65,123.09,123.04,8.28973709]
[1766502318516,0.65,123.09,123.04,13.11978498]
[1766502318952,0.65,123.09,123.04,13.11977056]
[1766502319247,0.65,123.08,123.03,0.16266114]
[1766502319446,0.65,123.07,123.03,4.99237738]
[1766502319627,0.65,123.07,123.04,4.82971624]
[1766502320235,0.65,123.07,123.03,0.16266114]
[1766502320548,0.65,123.07,123.04,4.82971624]
[1766502321137,12.95392365,123.09,123.05,4.82971624]
[1766502321138,0.65,123.09,123.05,4.82971624]
[1766502321656,0.2,123.11,123.08,4.82971624]
[1766502321835,0.2,123.11,123.09,4.82971624]
[1766502322156,0.65,123.1,123.04,38.88351603]
[1766502322347,0.65,123.1,123.06,4.82971624]
[1766502322534,0.2,123.11,123.06,8.12585252]
[1766502322854,0.85,123.11,123.05,8.28924704]
[1766502323152,0.65,123.09,123.05,4.82971624]
[1766502323347,0.65,123.08,123.04,15.2673892]
[1766502323561,0.65,123.08,123.04,10.43767296]
[1766502323753,0.65,123.08,123.05,4.82971624]
[1766502324859,0.65,123.08,123.03,22.96784853]
[1766502325156,0.65,123.08,123.04,4.82971624]
[1766502325559,8.12494053,123.08,123.03,14.84]
[1766502325733,8.12494053,123.08,123.0,21.137412]
[1766502325734,5.47971624,123.06,123.0,8.12966847]
[1766502325933,5.47971624,123.05,123.0,12.95938471]
[1766502326136,0.65,123.05,123.01,4.82971624]
[1766502326438,0.65,123.05,123.0,23.39705767]
[1766502326634,0.65,123.05,123.01,4.82971624]
[1766502326834,0.65,123.05,123.02,4.82971624]
[1766502327054,0.65,123.05,123.0,8.12966847]
[1766502327055,0.65,123.07,123.0,18.56734143]
[1766502327259,5.47971624,123.07,123.02,4.82971624]
[1766502327438,0.65,123.07,123.04,4.82971624]
[1766502328232,0.65,123.07,123.03,10.43767296]
[1766502328437,0.65,123.09,123.05,4.82971624]
[1766502328838,12.95325531,123.1,123.03,15.2673892]
[1766502328839,4.82971624,123.08,123.03,15.2673892]
[1766502329034,0.65,123.06,123.02,4.82971624]
[1766502329440,5.47971624,123.08,123.03,8.12794524]
[1766502329644,4.82971624,123.08,123.03,4.82971624]
[1766502329840,0.65,123.05,123.01,10.43767296]
[1766502330035,0.65,123.05,122.99,8.13059466]
[1766502330257,0.65,123.05,123.01,4.82971624]
[1766502330565,0.65,123.05,123.02,4.82971624]
[1766502330766,8.12690641,123.05,122.98,14.84]
[1766502330943,8.12690641,123.05,122.95,0.81333875]
[1766502330944,0.65,123.0,122.95,8.13310315]
[1766502331140,0.65,123.0,122.96,4.82971624]
[1766502331463,0.65,123.0,122.97,4.82971624]
[1766502332152,0.65,123.0,122.92,14.84]
[1766502332355,0.65,122.98,122.94,4.82971624]
[1766502332551,0.65,122.98,122.94,12.96372985]
[1766502332861,8.12967107,123.01,122.96,4.82971624]
[1766502332862,8.77945499,123.01,122.96,4.82971624]
[1766502333156,1.01626016,123.0,122.95,4.82971624]
[1766502333364,0.65,122.99,122.95,4.82971624]
[1766502333548,0.65,122.98,122.94,4.82971624]
[1766502334235,4.82971624,123.0,122.95,4.82971624]
[1766502334534,0.65,122.99,122.95,4.82971624]
[1766502334942,0.68,122.98,122.94,4.82971624]
[1766502335149,0.68,122.97,122.93,4.82971624]
[1766502335564,4.82971624,122.98,122.94,8.13396388]
[1766502335765,5.50971624,122.99,122.94,12.96368012]
[1766502336067,0.68,122.98,122.94,12.96368012]
[1766502336561,0.68,122.98,122.93,8.29710348]
[1766502336764,0.68,122.98,122.94,4.82971624]
[1766502337158,5.48971624,122.96,122.92,18.57284106]
[1766502337463,0.66,122.96,122.92,23.4025573]
[1766502337768,0.66,122.96,122.92,15.2673892]
[1766502338067,0.66,122.96,122.92,23.40270073]
[1766502338266,1.01626016,123.0,122.92,15.2673892]
[1766502338458,0.66,123.01,122.97,4.82971624]
[1766502338660,0.66,123.01,122.99,4.82971624]
[1766502338864,0.66,123.03,122.97,0.16266114]
[1766502339049,0.66,123.03,123.01,4.82971624]
[1766502339249,1.01568213,123.07,122.99,10.43767296]